Cogmind - Beta 15 @@@ ROGUE MODE // 2025.10.16 @ 23:41:32 Player: weras Result: Destroyed by G-47 Trooper with Particle Gun Performance ------------- Evolutions (3) 1500 Regions Visited (6) 1200 Robots Destroyed (119) 595 Value Destroyed (3960) 3960 Prototype IDs (5) 100 Alien Tech Used (0) 0 Bonus (24) 24 TOTAL SCORE: 7379 Bonus ------- High Alert Combat Kills 24 Cogmind --------- Core Integrity 0/700 Matter 216/300 Energy 19/100 System Corruption 3% Temperature Cool (9) Movement Core (950) Ox18 Location -7/Factory Parts ------- > --- POWER (1) -------- (None) > --- PROPULSION (2) --- (None) > --- UTILITY (6) ------ Cooling System High-capacity Storage Unit Improved Signal Interpreter > --- WEAPON (4) ------- Ion Cannon Ion Cannon Heavy Hammer > --- INVENTORY (20) --- Improved Deuterium Engine Compact Wheel Compact Wheel High-capacity Matter Pod (200) Particle Charger Hacking Suite System Shield Peak State ------------ > --- POWER ------------ Improved Deuterium Engine > --- PROPULSION ------- Armored Huge Wheel > --- UTILITY ---------- High-capacity Storage Unit Improved Sensor Array Improved Signal Interpreter Matter Filter Hardened Medium Armor Plating High-powered Tractor Beam > --- WEAPON ----------- Minigun Precision Assault Rifle Precision Assault Rifle Heavy Hammer > --- INVENTORY -------- Improved Deuterium Engine Improved Deuterium Engine Improved Deuterium Engine Improved Heat Sink Cooling System High-capacity Matter Pod Advanced Visual Processing Unit Improved Terrain Scanner Particle Charger Hardened Medium Armor Plating Shield Generator Hacking Suite System Shield Ion Cannon Ion Cannon Ion Cannon Ion Cannon Precision Assault Rifle Precision Assault Rifle Missile Launcher [Rating: 50] Favorites ----------- Power Improved Deuterium Engine Engine Improved Deuterium Engine Power Core Light Nuclear Core Propulsion Compact Wheel Wheel Compact Wheel Flight Unit Improved Flight Unit Utility High-capacity Storage Unit Device Improved Sensor Array Storage High-capacity Storage Unit Processor Signal Interpreter Protection Hardened Medium Armor Plating Weapon Heavy Hammer Energy Gun EM Shotgun Energy Cannon Ion Cannon Ballistic Gun Precision Assault Rifle Ballistic Cannon Assault Cannon Launcher Missile Launcher Special Weapon Plasma Cutter Impact Weapon Heavy Hammer Build | -11 -10 -10 -9 -8 -8 -7 ------- Run | Yrd Mat Min Mat Mat Sto Fac Slots Evolved 6 | . . . 2 2 . 2 Power . | . . . . . . . Propulsion . | . . . . . . . Utility 4 | . . . 2 . . 2 Weapon 2 | . . . . 2 . . Parts Attached 84 | 6 16 2 9 22 4 25 Power 12 | . 2 . 2 5 . 3 Engine 10 | . 2 . 1 4 . 3 Core 2 | . . . 1 1 . . Reactor . | . . . . . . . Propulsion 13 | 2 2 . 2 2 2 3 Treads . | . . . . . . . Leg . | . . . . . . . Wheel 12 | 2 2 . 2 2 1 3 Hover . | . . . . . . . Flight 1 | . . . . . 1 . Utility 25 | 1 7 1 1 4 1 10 Device 12 | . 3 . . 3 . 6 Storage 3 | 1 2 . . . . . Processor 3 | . . 1 . . 1 1 Hackware . | . . . . . . . Protection 7 | . 2 . 1 1 . 3 Artifact . | . . . . . . . Weapon 34 | 3 5 1 4 11 1 9 Energy Gun 5 | 2 2 1 . . . . Energy Cannon 4 | . . . . . . 4 Ballistic Gun 11 | 1 1 . . 4 1 4 Ballistic Cannon 7 | . 1 . 2 4 . . Launcher 3 | . 1 . . 1 . 1 Special Weapon 3 | . . . 2 1 . . Impact Weapon 1 | . . . . 1 . . Slashing Weapon . | . . . . . . . Piercing Weapon . | . . . . . . . Special Melee Weapon . | . . . . . . . Unidentified Prototypes 4 | . . . . 3 1 . Parts Lost 42 | . 3 1 5 13 . 20 Power 5 | . . . 1 1 . 3 Propulsion 6 | . 2 . 1 2 . 1 Utility 13 | . 1 . 1 3 . 8 Weapon 18 | . . 1 2 7 . 8 Highest Loss Streak 14 | . 1 1 5 8 . 14 To Critical Strikes 2 | . . . . 1 . 1 Average Backups 14 | 1 7 13 13 13 18 18 Power 1 | . . . . 2 3 2 Propulsion . | . . 1 2 1 . . Utility 7 | . 4 7 6 7 9 8 Weapon 4 | . 2 4 4 2 5 6 Tool/Special . | . . . . . . . Unused Backups 25 | . 1 . 1 11 5 7 Power 8 | . . . . 7 . 1 Propulsion . | . . . . . . . Utility 9 | . 1 . . 3 . 5 Weapon 7 | . . . 1 1 4 1 Tool/Special 1 | . . . . . 1 . Average Slot Usage (%) 95 | . 94 98 98 90 100 95 Engine 7 | . 10 14 5 6 9 6 Core 1 | . . . 5 2 . . Wheel 18 | . 26 28 21 15 17 12 Device 14 | . 5 . 11 16 18 20 Storage 9 | . 14 14 11 9 9 7 Processor 7 | . . 7 11 9 9 8 Protection 4 | . 7 6 10 . . 7 Energy Gun 4 | . 12 26 11 . . . Ballistic Gun 10 | . 7 . . 8 12 20 Ballistic Cannon 8 | . 7 . 6 15 14 1 Impact Weapon 4 | . . . . 5 9 5 Peak Build Rating 50 | 5 10 10 15 33 34 50 Average Rating 25 | 4 7 9 13 23 32 44 On Entrance 14 | . 5 10 10 15 31 32 Naked Turns . | . . . . . . . Heaviest Build 82 | 9 52 52 57 71 70 82 Greatest Support 32 | 32 32 32 32 32 20 32 Greatest Overweight (x) 6 | . 3 1 3 6 6 4 Average Overweight (x) 2 | . . 1 1 3 5 2 Largest Inventory Capacity 20 | 8 20 20 20 20 20 20 Average Capacity 18 | 7 12 20 20 20 20 20 Most Carried 20 | 3 13 14 17 20 20 20 Average Carried 14 | 1 7 13 13 13 18 18 Final Capacity 20 | 8 20 20 20 20 20 20 Final Carried 20 | 3 13 14 14 19 20 7 Class Distribution -------------------- 50% | Skirmisher 40% | Mutant 6% | Tank Dominant Class ---------------- Mutant | -10/Materials Mutant | -10/Mines Mutant | -9/Materials Skirmisher | -8/Materials Skirmisher | -8/Storage Skirmisher | -7/Factory Resources | -11 -10 -10 -9 -8 -8 -7 ----------- Run | Yrd Mat Min Mat Mat Sto Fac Matter Collected 2893 | 167 497 20 289 889 259 772 Remotely 772 | . . . . . . 772 Salvage Created 4377 | . 387 208 359 1546 501 1376 Parts 193 | . 28 9 17 54 18 67 Haulers Intercepted 9 | . 1 . . 4 2 2 Recyclers Shooed 7 | . . . . 6 1 . Parts Field Recycled . | . . . . . . . Retrieved Matter . | . . . . . . . Parts Self-Destructed . | . . . . . . . Prevented . | . . . . . . . Kills | -11 -10 -10 -9 -8 -8 -7 ------- Run | Yrd Mat Min Mat Mat Sto Fac Combat Hostiles Destroyed 80 | . 13 2 7 21 6 31 Melee 2 | . . . . 2 . . Guns 27 | . 4 2 2 5 . 14 Cannons 19 | . 6 . . 9 2 2 AOE 26 | . 3 . 5 3 . 15 Classes Destroyed 15 | . 5 1 1 4 . 4 Worker 6 | . 2 1 . 2 1 . Builder 4 | . . . . 2 . 2 Hauler 9 | . 1 . . 4 2 2 Recycler 10 | . . 1 1 4 1 3 Operator 2 | . . . . 1 1 . Watcher 8 | . 2 . 2 3 1 . Swarmer 10 | . 3 . . 4 . 3 Grunt 42 | . 10 2 6 9 2 13 Brawler 2 | . . . . 1 . 1 Duelist 1 | . . . . . . 1 Protector 1 | . . . . . . 1 Sentry 10 | . . . 1 5 3 1 Specialist 3 | . . . . . . 3 Hunter 6 | . . . . 2 1 3 Programmer 5 | . . . . . . 5 Best Kill Streak 12 | . 5 3 8 7 4 12 Combat Bots Only 9 | . 4 2 7 4 2 9 Max Kills in Single Turn 4 | . 2 1 3 2 1 4 Gunslinging . | . . . . . . . Exploded 4 | . 2 . 3 2 . 4 Melee 1 | . . . . 1 . . Uniques/NPCs Destroyed . | . . . . . . . Combat | -11 -10 -10 -9 -8 -8 -7 -------- Run | Yrd Mat Min Mat Mat Sto Fac Hostile Shots Fired 769 | . 59 9 47 180 15 459 Missed 244 | . 13 4 13 42 2 170 Hits 525 | . 46 5 34 138 13 289 Projectile 525 | . 46 5 34 138 13 289 Critical Strikes 16 | . 2 . . 8 . 6 Part Disruptions 1 | . . . . . . 1 Damage Taken 6507 | . 593 104 490 1645 188 3487 Core 1217 | . 95 38 93 240 51 700 Absorbed by Shields 317 | . . . . 248 69 . Core Remaining (%) 67 | 100 . 46 76 . 47 . Volleys Fired 240 | . 66 8 14 70 11 71 Largest 4 | . 2 2 2 4 3 4 Hottest 125 | . 100 90 100 125 88 120 Shots Fired 531 | . 129 14 22 156 34 176 Gun 322 | . 71 14 18 48 23 148 Cannon 181 | . 55 . . 100 11 15 Launcher 25 | . 3 . 3 6 . 13 Special 3 | . . . 1 2 . . Kinetic 440 | . 110 . . 148 34 148 Thermal 30 | . 12 . 1 2 . 15 Explosive 19 | . 3 . 3 . . 13 Electromagnetic 42 | . 4 14 18 6 . . Robot Hit Streak 19 | . 14 10 4 15 12 19 Robot Miss Streak 5 | . 4 3 3 5 3 4 Penetration Max 1 | . . . . 1 . . Secondary Targets 2 | . . 1 . . . 1 Max Gunslinging Chain 1 | . . 1 . . . 1 Shots Hit Robots 370 | . 86 11 17 100 28 128 Core Hits 199 | . 31 7 17 49 8 87 Critical Kills 1 | . . . . 1 . . Critical Parts Destroyed 8 | . . . . 4 3 1 Critical Strikes 12 | . 2 . . 6 3 1 Blast 3 | . 2 . . 1 . . Smash 9 | . . . . 5 3 1 Melee Attacks 75 | . . . . 28 26 21 Impact 75 | . . . . 28 26 21 Slashing . | . . . . . . . Piercing . | . . . . . . . Sneak Attacks 10 | . . . . 7 2 1 Combat Hostiles . | . . . . . . . Follow-up Attacks . | . . . . . . . Damage Inflicted 11016 | . 1258 221 635 2985 754 5163 Guns 3967 | . 528 198 225 686 228 2102 Cannons 1915 | . 650 . . 869 196 200 Explosions 3527 | . 79 23 410 450 . 2565 Melee 1602 | . . . . 976 330 296 Ramming 3 | . 1 . . 2 . . Kinetic 5171 | . 1090 . . 1555 424 2102 Thermal 587 | . 88 23 140 2 . 334 Explosive 2780 | . 79 . 270 . . 2431 Electromagnetic 873 | . . 198 225 450 . . Impact 1602 | . . . . 976 330 296 Slashing . | . . . . . . . Piercing . | . . . . . . . Highest Corruption 5 | . . . . 4 5 3 Average Corruption 3 | . . . . 3 4 1 Corruption Purged . | . . . . . . . Corruption Blocked . | . . . . . . . Effects 51 | . . . . 27 20 4 Message Errors 13 | . . . . 7 5 1 Matter Fused 12 | . . . . 5 5 2 Heat Flow Errors 5 | . . . . 1 4 . Energy Discharges 8 | . . . . 6 2 . Data Loss (minor) 4 | . . . . 4 . . Data Loss (major) 3 | . . . . . 2 1 Misfires 4 | . . . . 3 1 . Alerts 2 | . . . . 1 1 . Overload Shots . | . . . . . . . Overflow Damage 621 | . 11 . . 346 162 102 Projectiles 11 | . 11 . . . . . Explosions 33 | . . . . . . 33 Melee 577 | . . . . 346 162 69 Knockbacks 28 | . 11 . . 12 4 1 Impact 7 | . . . . 3 3 1 Kinetic 19 | . 10 . . 8 1 . Secondary 2 | . 1 . . 1 . . Self-Inflicted Damage 136 | . . 36 71 6 . 23 Shots 5 | . . 1 2 1 . 1 Rammed 3 | . 2 . . 1 . . Targets Rammed 3 | . 2 . . 1 . . Kicked . | . . . . . . . Crushed . | . . . . . . . Highest Temperature 250 | . 90 87 166 219 250 233 Average Temperature 47 | . 21 29 74 45 73 53 Received Heat Transfer 1826 | . 360 39 228 356 36 807 Siege Activations . | . . . . . . . Martial Activations . | . . . . . . . Shielding Activations . | . . . . . . . Robots Disrupted . | . . . . . . . Combat Hostiles . | . . . . . . . Robots Corrupted 12 | . . . . 8 4 . Combat Hostiles 6 | . . . . 2 4 . Parts Fried 26 | . . 2 . 13 11 . Impact Corruptions 23 | . . . . 12 7 4 Robots Melted . | . . . . . . . Combat Hostiles . | . . . . . . . Parts Melted 1 | . . . . . . 1 Heat Transferred 917 | . 259 50 150 25 . 433 Parts Sabotaged . | . . . . . . . Parts Stolen . | . . . . . . . Parts Stripped . | . . . . . . . Power Chain Reactions 3 | . . 1 2 . . . Alert | -11 -10 -10 -9 -8 -8 -7 ------- Run | Yrd Mat Min Mat Mat Sto Fac Maximum Alert Level 2 | . . . . . . 2 Low Security (%) 92 | 100 100 100 100 100 100 71 Level 1 7 | . . . . . . 27 Level 2 . | . . . . . . . Level 3 . | . . . . . . . Level 4 . | . . . . . . . Level 5 . | . . . . . . . High Security . | . . . . . . . Max Security . | . . . . . . . Peak Influence 420 | . 168 41 172 165 120 420 Initial 66 | . . 25 11 22 66 . Average 69 | . 62 10 61 40 43 133 Influence Increases 2814 | . 447 66 258 703 282 1058 Destroy 0b10 Robot/C 1580 | . 260 40 140 420 120 600 Destroy 0b10 Robot/NC 200 | . 25 10 15 80 30 40 Destroy Leader 362 | . 56 10 34 114 46 102 Successful Hack 145 | . 64 . 29 15 13 24 Disable Machine 225 | . 15 . 15 60 60 75 Anti-Garrison Action 150 | . . . . . . 150 Destroy Structure 152 | . 27 6 25 14 13 67 Influence Decreases 2418 | . 382 100 234 601 439 662 Entered New Map 184 | . . 40 20 33 91 . Time Decay 1835 | . 352 50 185 438 348 462 Lost Part 399 | . 30 10 29 130 . 200 Squads Dispatched 17 | . 1 . . 2 2 12 Investigation 1 | . . . . . . 1 Extermination 3 | . . . . . . 3 Reinforcement 7 | . 1 . . 2 2 2 Assault 2 | . . . . . . 2 Garrison 4 | . . . . . . 4 Intercept . | . . . . . . . Searches Triggered . | . . . . . . . Construction Impeded 2 | . . . . 1 . 1 Haulers Reinforced . | . . . . . . . Active Scanning Responses . | . . . . . . . Cargo Convoy Interrupts 1 | . . . . . . 1 Stealth | -11 -10 -10 -9 -8 -8 -7 --------- Run | Yrd Mat Min Mat Mat Sto Fac Distress Signals 7 | . 2 . 1 3 1 . Communications Jammed . | . . . . . . . Distress Signals . | . . . . . . . Times Spotted 121 | . 25 2 8 39 9 38 Peak Tracking Total 11 | . 5 2 8 6 3 11 Tactical Retreats . | . . . . . . . Traps | -11 -10 -10 -9 -8 -8 -7 ------- Run | Yrd Mat Min Mat Mat Sto Fac Traps Triggered 2 | . . . . 1 . 1 Indirectly . | . . . . . . . Trap Hack Attempts . | . . . . . . . Triggered . | . . . . . . . Disarmed . | . . . . . . . Reprogrammed . | . . . . . . . Reused . | . . . . . . . Traps Extracted . | . . . . . . . Installed . | . . . . . . . Triggered . | . . . . . . . Machines | -11 -10 -10 -9 -8 -8 -7 ---------- Run | Yrd Mat Min Mat Mat Sto Fac Machines Disabled 16 | . 1 . 1 4 4 6 Max in Single Turn 2 | . 1 . 1 1 1 2 Garrison Access 1 | . . . . . . 1 Machines Repaired . | . . . . . . . Machines Dismantled . | . . . . . . . Machines Sabotaged . | . . . . . . . Overloaded Fab Kills . | . . . . . . . Hacking | -11 -10 -10 -9 -8 -8 -7 --------- Run | Yrd Mat Min Mat Mat Sto Fac Machines Accessed 26 | . 6 . 5 5 5 5 Terminals 23 | . 5 . 5 5 5 3 Fabricators 1 | . . . . . . 1 Repair Stations . | . . . . . . . Recycling Units 1 | . 1 . . . . . Scanalyzers 1 | . . . . . . 1 Garrison Access . | . . . . . . . Total Hacks 82 | . 23 . 19 12 19 9 Successful 44 | . 11 . 13 7 10 3 Failed 38 | . 12 . 6 5 9 6 Catastrophic 7 | . 2 . 1 2 1 1 Database Lockouts . | . . . . . . . Manual 56 | . 17 . 15 10 10 4 Terminals 74 | . 20 . 19 12 19 4 Fabricators 2 | . . . . . . 2 Repair Stations . | . . . . . . . Recycling Units 3 | . 3 . . . . . Scanalyzers 3 | . . . . . . 3 Garrison Access . | . . . . . . . Terminal Hacks 13 | . 2 . 5 1 3 2 Record 1 | . . . . . . 1 Robot Analysis 2 | . . . 1 . 1 . Open DSF 1 | . . . . . . 1 Branch Access Points 2 | . 1 . 1 . . . Terminal Index 2 | . . . 1 . 1 . Locate Traps 1 | . . . . . 1 . Hauler Manifests 2 | . . . 1 1 . . Zone Layout 2 | . 1 . 1 . . . Fabricator Hacks . | . . . . . . . Repair Station Hacks . | . . . . . . . Recycling Unit Hacks 2 | . 2 . . . . . Process 1 | . 1 . . . . . Retrieve Matter 1 | . 1 . . . . . Scanalyzer 1 | . . . . . . 1 Insert Component 1 | . . . . . . 1 Garrison Access Hacks . | . . . . . . . Unauthorized Hacks 28 | . 7 . 8 6 7 . Terminals 28 | . 7 . 8 6 7 . Botnet 12 | . 3 . 3 3 3 . Skim 16 | . 4 . 5 3 4 . Fabricators . | . . . . . . . Repair Stations . | . . . . . . . Recycling Units . | . . . . . . . Scanalyzers . | . . . . . . . Garrison Access . | . . . . . . . Data Cores Recovered . | . . . . . . . Used . | . . . . . . . Hacking Detections 21 | . 5 . 5 4 3 4 Full Trace Events 1 | . . . . . 1 . Feedback Events 1 | . . . . . 1 . Corruption 1 | . . . . . 1 . Feedback Blocked . | . . . . . . . Robot Schematics Acquired . | . . . . . . . Robots Built . | . . . . . . . Authchips . | . . . . . . . Time . | . . . . . . . Total Robot Build Rating . | . . . . . . . Part Schematics Acquired . | . . . . . . . Parts Built . | . . . . . . . Authchips . | . . . . . . . Time . | . . . . . . . Total Part Build Rating . | . . . . . . . Parts Repaired . | . . . . . . . Time . | . . . . . . . Parts Recycled . | . . . . . . . Recycled Matter 1020 | . 1020 . . . . . Retrieved Matter 1204 | . 1204 . . . . . Retrieved Components . | . . . . . . . Parts Scanalyzed . | . . . . . . . Part Schematics Acquired . | . . . . . . . Parts Damaged . | . . . . . . . Bothacking | -11 -10 -10 -9 -8 -8 -7 ------------ Run | Yrd Mat Min Mat Mat Sto Fac Used RIF Installer . | . . . . . . . Robots Hacked . | . . . . . . . Non-combat . | . . . . . . . Combat . | . . . . . . . Robot Hacks Applied . | . . . . . . . Relay Couplers Released 1 | . . . . . . 1 Machine Destruction 1 | . . . . . . 1 Fabnet Peak Effective % . | . . . . . . . Robots Rewired . | . . . . . . . Allies Hacked . | . . . . . . . Hacks Repelled . | . . . . . . . Allies | -11 -10 -10 -9 -8 -8 -7 -------- Run | Yrd Mat Min Mat Mat Sto Fac Total Allies . | . . . . . . . Largest Group . | . . . . . . . Highest-Rated Group . | . . . . . . . Highest-Rated Ally . | . . . . . . . Total Orders . | . . . . . . . Ally Attacks . | . . . . . . . Total Damage . | . . . . . . . Kills . | . . . . . . . Allies Corrupted . | . . . . . . . Allies Melted . | . . . . . . . Intel | -11 -10 -10 -9 -8 -8 -7 ------- Run | Yrd Mat Min Mat Mat Sto Fac Active Infowar (turns) 4731 | . 459 . 705 1325 885 1357 Optics 212 | . . . . . . 212 Sensors 4166 | . 129 . 705 1325 885 1122 Terrain 334 | . 99 . . . . 235 Seismic 231 | . 231 . . . . . Robot Analysis Total 2 | . . . 1 . 1 . Derelict Logs Recovered . | . . . . . . . Drone Launches . | . . . . . . . Drone Recoveries . | . . . . . . . Exploration | -11 -10 -10 -9 -8 -8 -7 ------------- Run | Yrd Mat Min Mat Mat Sto Fac Turns Passed 5832 | 42 1087 191 705 1436 885 1486 Spaces Moved 3026 | 33 732 139 353 753 394 622 Core 4 | 4 . . . . . . Treads . | . . . . . . . Legs . | . . . . . . . Wheels 3022 | 29 732 139 353 753 394 622 Hover . | . . . . . . . Flight . | . . . . . . . Fastest Speed 50 | 50 90 115 115 115 125 125 Average Speed 125 | 93 105 115 115 132 160 129 Slowest Speed 170 | 100 145 115 145 170 170 160 Overloaded Moves . | . . . . . . . Propulsion Burnouts . | . . . . . . . Robots Hopped . | . . . . . . . Potential Cave-ins . | . . . . . . . Cave-ins Triggered . | . . . . . . . Exploration Rate (%) 37 | 3 81 25 32 57 53 12 Regions Visited 6 Branch Regions 2 Pre-discovered Areas 3 | . . . 3 . . . Known Exits Taken 5 | . 1 1 1 1 1 . Unknown Exits Taken 1 | 1 . . . . . . Scrap Searched . | . . . . . . . Spaces Dug 28 | . . . 1 3 11 13 Terrain Destroyed 169 | . 26 6 27 13 12 85 Melee 22 | . . . . 3 11 8 Projectile 13 | . . . 1 10 1 1 AOE 134 | . 26 6 26 . . 76 Terrain Rammed . | . . . . . . . Walls Destroyed . | . . . . . . . Machines Disabled . | . . . . . . . Actions | -11 -10 -10 -9 -8 -8 -7 --------- Run | Yrd Mat Min Mat Mat Sto Fac Total 4483 | 41 922 155 629 1022 578 1136 Wait 877 | . 66 5 233 93 118 362 Move 3020 | 32 731 138 352 752 393 622 Hop . | . . . . . . . Pick Up 81 | 3 20 2 11 27 11 7 Fast Attach 28 | 5 2 . 1 13 1 6 Attach 46 | . 7 1 9 9 1 19 Detach 8 | . 3 . 1 1 . 3 Swap 41 | 1 15 1 2 7 5 10 Drop 64 | . 10 . 6 21 12 15 Fire 240 | . 66 8 14 70 11 71 Melee 75 | . . . . 28 26 21 Ram 3 | . 2 . . 1 . . Kick . | . . . . . . . Crush . | . . . . . . . Escape Stasis . | . . . . . . . Rewire . | . . . . . . . Trap . | . . . . . . . Miscellaneous . | . . . . . . . Route ------- -11/Scrapyard -10/Materials (discovered 3 exits: *Mat x2 / *Min) -10/Mines (discovered 2 exits: *Mat x2) -9/Materials (discovered 4 exits: *Mat x3 / Min) -8/Materials (discovered 4 exits: *Fac x2 / *Sto x2) -8/Storage (discovered 2 exits: *Fac / Rec) -7/Factory History --------- Turn | Location | Event 24 | -11/Scrapyard | Discovered new exit (range 16) 43 | -11/Scrapyard | Entered Materials 157 | -10/Materials | Identified exit to Mines 327 | -10/Materials | Build established: Mutant 467 | -10/Materials | Discovered new exit (range 3) 628 | -10/Materials | Discovered new exit (range 13) 1130 | -10/Materials | Entered Mines 1201 | -10/Mines | Discovered new exit (range 9) 1216 | -10/Mines | Identified exit to Materials 1278 | -10/Mines | Discovered exit to Materials (range 4) 1297 | -10/Mines | Core integrity fell below 50% 1321 | -10/Mines | Entered Materials 1321 | -9/Materials | Evolved 2 slots: Utility x2 1476 | -9/Materials | Identified exit to Mines 1705 | -9/Materials | Destroyed 7 combat bots 1712 | -9/Materials | Lost 5 parts (1p1n1u2w) 1817 | -9/Materials | Discovered new exit (range 9) 1826 | -9/Materials | Identified exit to Materials 1925 | -9/Materials | Learned location of Zion (-7) 1942 | -9/Materials | Learned Storage trap positions 1943 | -9/Materials | Learned location of 1 exit from Storage 1945 | -9/Materials | Learned location of 2 exits from Materials 2026 | -9/Materials | Entered another Materials area 2026 | -8/Materials | Evolved 2 slots: Weapon x2 2027 | -8/Materials | Identified exit to Storage 2028 | -8/Materials | Identified exit to Factory 2239 | -8/Materials | Lost 8 parts (1n2u5w) 2398 | -8/Materials | Discovered exit to Storage (range 7) 2771 | -8/Materials | Build established: Skirmisher 3462 | -8/Materials | Entered Storage 3463 | -8/Storage | Identified exit to Recycling 3465 | -8/Storage | Loaded intel: 25 trap records 3715 | -8/Storage | Core integrity fell below 50% 4347 | -8/Storage | Entered Factory 4347 | -7/Factory | Evolved 2 slots: Utility x2 4496 | -7/Factory | Garrison activated, responded to threat 4558 | -7/Factory | Destroyed 9 combat bots 5468 | -7/Factory | Cargo convoy interrupted 5512 | -7/Factory | Destroyed 9 combat bots 5513 | -7/Factory | Lost 3 parts (2u1w) 5762 | -7/Factory | Build established: Tank 5782 | -7/Factory | Garrison activated, responded to threat 5793 | -7/Factory | Core integrity fell below 50% 5819 | -7/Factory | Core integrity fell below 20% 5833 | -7/Factory | Destroyed by G-47 Trooper with Particle Gun Last Messages --------------- 05814_ M-28 Smith repairs G-47 Trooper. 05814_ ALERT: Garrison Access compromised, dispatching multiple assault carriers. 05814_ Garrison Access disabled. 05814_ Relay Coupler [Demolisher] tumbles out of Garrison Access. 05816_ M-28 Smith repairs G-47 Trooper. 05817_ System corrupted: Matter fused (-9). 05817_ Y-54 Guardian heat spikes uncontrollably. 05817_ Imp. Deuterium Engine melted. 05817_ Y-54 Guardian destroyed. 05818_ M-28 Smith repairs G-47 Trooper. 05819_ Critical hit (Burn: +37). 05820_ M-28 Smith repairs G-47 Trooper Imp. Heat Sink. 05821_ Ion Cannon destroyed. 05823_ G-47 Trooper destroyed. 05824_ Imp. Deuterium Engine destroyed. 05825_ M-28 Smith repairs Y-54 Guardian. 05827_ Ion Cannon destroyed. Map ----- +----------------------------------------------------+ | """!"""#######%### ############+ | | """T"""# * # ^ ##???#??# | | ######## #^ """ ""%" ######### " | | ???????# #^ """ """% # # " | | ???????# # """ """" + # " | | ????#??# # # # | | ???????# # "" """ # # """ | | ???????#[ # """ %""" # # "T | | ??????## # ^"F """" # # """ | | ???????########### ^""" # # | | ???????#????#????# """ """" # ##### | | #????????????????# """ """" + #???? | | ?????????????????# """ # #???# | | ???#?????????????# # #???? | | ????#??????##########+### """" # #???? | | ?????#?????# # """" # #???? | | ???????????# """ # """" # #???? | | ???????????# """"" # # #???? | | ???????????# """"" # == # #???? | | ???????????# # == # #???? | | ???????????# """ # ####+####???? | | ???????????# """"" # #??# #??????? | | ???????????# """"" # m #### ###????? | | ???????????# #% %Y #????? | | ???????????# # !% G" #????? | | ???????????# #@ !%! " #????? | | ???????????# # ]g! #????? | | ???????????############## % ##???? | | ???????????????#??????###### # ;######+###????? | | ?????????????????????????## #??????? | | ??????????????????????????# """ #??????? | | ??????????????????????????# """ #??????? | | ?????????????????????????## "S #??????? | | ?????????????????????????## """ #??#???? | | ???????????????????#??????# "" ! """""" #??????? | | ??????????????????????????# """""" #??????? | | ?????????????????????????## """""" #??????? | | ?????????????????????????## """""" #??????? | | ??????????????????????????# #??????? | | ????????????????????????#?#################??????? | | ???????????????#?????????????????????????????????? | | ?????????????????????????????????????????????????? | | ????????????????????????#????????????????????????? | | ?????????????????????????????????????????????????? | | ?????????????????????????????????????????????????? | | ?????????????????????????????????????????#???????? | | ?????????????????????????????????????????????????? | | ?????????????????????????????????????????????????? | | ?????????????????????????????????????????????????? | | ?????????????????????????????????????????????????? | +----------------------------------------------------+ Best States ------------- Heat Dissipation 56 Energy Generation 16 Energy Capacity 290 Matter Stores 300 Matter Capacity 300 Sight Range 20 Robot Scan Range 15 Terrain Scan Range 16 Terrain Scan Density 10 Armor Coverage 450 Evasion (%) 42 Matter Filtering 30 Item Schematics ----------------- None Robot Schematics ------------------ None Fabricated ------------ Nothing Repaired ---------- Nothing Alien Tech Used ----------------- None Achievements -------------- None Challenges ------------ None Game ------ Seed ThunderSmartLegs Manual? 0 Play Time 01:07:38 Cumulative 28.3 hours Start 2025.10.16 @ 12:17:48 End 2025.10.16 @ 23:41:32 Sessions 3 Manual Loads 0 Difficulty Rogue Special Mode None Game No. 30 Rogue 30 Adventurer 0 Explorer 0 Win Type - Total 0 Types 0/0/0/0/0/0/0/0/0/0 Lore% 21 Gallery% 23 Achievement% 24 Wizard Run 0 Options --------- Layout 1 ASCII 0 Keyboard 0 Movement Numpad Keybinds 0 Fullscreen 1 Font 24/Smallcaps Map View 50x35 Zoom Use 0% Tactical HUD 1 Map Filters NONE Filters NONE Steam 1 RUN: 93886e6e-a8af-400e-bad3-68396eacf63a